[Event "Late-Titled-Tuesday-Blitz-February-13-2024"]
[Site "Chess.com"]
[Date "2024.02.13"]
[Round "3"]
[White "Zapateado"]
[Black "Bilan_Danila"]
[Result "1-0"]
[WhiteElo "2370"]
[BlackElo "2529"]
[TimeControl "180+1"]
[EndTime "14:29:57 PST"]
[Termination "Zapateado won by resignation"]

1. c4 {[%clk 0:03:00]} 1... c6 {[%clk 0:02:59.6]} 2. e4 {[%clk 0:03:00.1]} 2...
d5 {[%clk 0:03:00.5]} 3. cxd5 {[%clk 0:03:00.7]} 3... cxd5 {[%clk 0:03:00.7]} 4.
exd5 {[%clk 0:03:01.5]} 4... Nf6 {[%clk 0:03:00.4]} 5. Nc3 {[%clk 0:03:02.2]}
5... Nxd5 {[%clk 0:03:00.7]} 6. Bc4 {[%clk 0:03:02.8]} 6... e6 {[%clk
0:02:56.4]} 7. Nf3 {[%clk 0:03:02.9]} 7... Nc6 {[%clk 0:02:56.6]} 8. O-O {[%clk
0:03:02.8]} 8... Be7 {[%clk 0:02:56.7]} 9. d4 {[%clk 0:03:02.9]} 9... Bf6 {[%clk
0:02:56.9]} 10. Qe2 {[%clk 0:02:59.5]} 10... O-O {[%clk 0:02:52.7]} 11. Rd1
{[%clk 0:02:59.1]} 11... a6 {[%clk 0:02:49.3]} 12. Ne5 {[%clk 0:02:52.4]} 12...
Qc7 {[%clk 0:02:26.8]} 13. Bxd5 {[%clk 0:02:38.6]} 13... exd5 {[%clk 0:02:12.6]}
14. Nxd5 {[%clk 0:02:37.4]} 14... Qd8 {[%clk 0:02:08.1]} 15. Nxf6+ {[%clk
0:02:23.7]} 15... Qxf6 {[%clk 0:02:09]} 16. Nxc6 {[%clk 0:02:21]} 16... Qxc6
{[%clk 0:02:01.6]} 17. Bf4 {[%clk 0:02:20.1]} 17... Be6 {[%clk 0:01:57.1]} 18.
Rac1 {[%clk 0:02:19.1]} 18... Qd5 {[%clk 0:01:50.6]} 19. b3 {[%clk 0:02:17.1]}
19... Rac8 {[%clk 0:01:49.5]} 20. Qe5 {[%clk 0:02:14.1]} 20... f6 {[%clk
0:01:28.3]} 21. Qxd5 {[%clk 0:01:59.3]} 21... Bxd5 {[%clk 0:01:29.2]} 22. f3
{[%clk 0:01:48.9]} 22... Kf7 {[%clk 0:01:27.4]} 23. Kf2 {[%clk 0:01:48.9]} 23...
Rfd8 {[%clk 0:01:24.9]} 24. Bc7 {[%clk 0:01:41.9]} 24... Rd7 {[%clk 0:01:20.6]}
25. Bb6 {[%clk 0:01:40.6]} 25... Rxc1 {[%clk 0:01:14.6]} 26. Rxc1 {[%clk
0:01:41.5]} 26... Bc6 {[%clk 0:01:15.5]} 27. Bc5 {[%clk 0:01:36.1]} 27... Bd5
{[%clk 0:01:05.3]} 28. Re1 {[%clk 0:01:33.6]} 28... Be6 {[%clk 0:01:04]} 29. Ke3
{[%clk 0:01:23.9]} 29... Rc7 {[%clk 0:00:59.6]} 30. Re2 {[%clk 0:01:13.4]} 30...
Rd7 {[%clk 0:00:54.2]} 31. Rc2 {[%clk 0:01:11.5]} 31... Rc7 {[%clk 0:00:54.1]}
32. Rd2 {[%clk 0:01:08.5]} 32... Bd5 {[%clk 0:00:52.9]} 33. g3 {[%clk
0:01:02.5]} 33... Ke6 {[%clk 0:00:52.1]} 34. Kf4 {[%clk 0:00:59.8]} 34... h5
{[%clk 0:00:45.9]} 35. h4 {[%clk 0:00:59]} 35... Kf7 {[%clk 0:00:37.7]} 36. g4
{[%clk 0:00:58.5]} 36... hxg4 {[%clk 0:00:34.1]} 37. fxg4 {[%clk 0:00:59.4]}
37... Rc6 {[%clk 0:00:34.7]} 38. Re2 {[%clk 0:00:57]} 38... b6 {[%clk
0:00:30.6]} 39. Re7+ {[%clk 0:00:52.9]} 39... Kg8 {[%clk 0:00:30.8]} 40. Re8+
{[%clk 0:00:43.8]} 40... Kf7 {[%clk 0:00:29.8]} 41. Rd8 {[%clk 0:00:28.6]} 41...
Ke6 {[%clk 0:00:16.9]} 42. Bf8 {[%clk 0:00:27.4]} 42... Rc3 {[%clk 0:00:14.2]}
43. Rd6+ {[%clk 0:00:22.2]} 43... Kf7 {[%clk 0:00:12.3]} 44. Rxd5 {[%clk
0:00:22.6]} 44... Kxf8 {[%clk 0:00:12.7]} 45. Rd6 {[%clk 0:00:23.1]} 45... Rc2
{[%clk 0:00:12.4]} 46. Rxb6 {[%clk 0:00:22.4]} 46... Rxa2 {[%clk 0:00:12.4]} 47.
Kf5 {[%clk 0:00:22.9]} 47... Kf7 {[%clk 0:00:07.5]} 48. Rb7+ {[%clk 0:00:22.8]}
48... Kf8 {[%clk 0:00:08]} 49. d5 {[%clk 0:00:17.7]} 49... Re2 {[%clk
0:00:07.4]} 50. d6 {[%clk 0:00:14.1]} 50... Rd2 {[%clk 0:00:05.4]} 51. Ke6
{[%clk 0:00:13.7]} 51... Re2+ {[%clk 0:00:05.4]} 52. Kd7 {[%clk 0:00:14.3]}
52... Kf7 {[%clk 0:00:04.1]} 53. Kc6+ {[%clk 0:00:12]} 53... Ke8 {[%clk
0:00:02.1]} 54. Rxg7 {[%clk 0:00:11.7]} 54... Rc2+ {[%clk 0:00:02]} 55. Kd5
{[%clk 0:00:11.5]} 55... Rd2+ {[%clk 0:00:02.4]} 56. Ke6 {[%clk 0:00:11.8]}
56... Re2+ {[%clk 0:00:03.1]} 57. Kxf6 {[%clk 0:00:12.4]} 57... Rd2 {[%clk
0:00:04]} 58. Ke6 {[%clk 0:00:07.2]} 58... Re2+ {[%clk 0:00:03.8]} 59. Kd5
{[%clk 0:00:07.5]} 59... Rd2+ {[%clk 0:00:04.7]} 60. Kc6 {[%clk 0:00:08.2]}
60... Rc2+ {[%clk 0:00:05.4]} 61. Kb7 {[%clk 0:00:08.4]} 61... Rb2 {[%clk
0:00:06]} 62. Kxa6 {[%clk 0:00:08.4]} 62... Rxb3 {[%clk 0:00:06.1]} 63. h5
{[%clk 0:00:08.8]} 63... Rh3 {[%clk 0:00:03.5]} 64. Kb6 {[%clk 0:00:07.2]} 64...
Rb3+ {[%clk 0:00:03.9]} 65. Kc6 {[%clk 0:00:07.7]} 65... Rc3+ {[%clk 0:00:04.6]}
66. Kd5 {[%clk 0:00:08.1]} 66... Rd3+ {[%clk 0:00:05.2]} 67. Ke5 {[%clk
0:00:08.6]} 67... Re3+ {[%clk 0:00:05.9]} 68. Kd4 {[%clk 0:00:08.9]} 68... Re1
{[%clk 0:00:04.8]} 69. h6 {[%clk 0:00:08.1]} 69... Rd1+ {[%clk 0:00:04.7]} 70.
Ke5 {[%clk 0:00:08.7]} 70... Re1+ {[%clk 0:00:05.2]} 71. Kf6 {[%clk 0:00:08.9]}
71... Rf1+ {[%clk 0:00:05.8]} 72. Kg6 {[%clk 0:00:08.9]} 72... Rg1 {[%clk
0:00:05.5]} 73. g5 {[%clk 0:00:08.7]} 73... Kf8 {[%clk 0:00:04.1]} 74. h7 {[%clk
0:00:05.2]} 74... Rh1 {[%clk 0:00:04.6]} 1-0

[Event "Late-Titled-Tuesday-Blitz-February-13-2024"]
[Site "Chess.com"]
[Date "2024.02.13"]
[Round "3"]
[White "kids2010"]
[Black "RantomOpening"]
[Result "1/2-1/2"]
[WhiteElo "2760"]
[BlackElo "2513"]
[TimeControl "180+1"]
[EndTime "14:30:01 PST"]
[Termination "Game drawn by stalemate"]

1. e4 {[%clk 0:03:00.9]} 1... c5 {[%clk 0:03:00.1]} 2. Nc3 {[%clk 0:02:43.7]}
2... e6 {[%clk 0:03:00.3]} 3. d4 {[%clk 0:02:41.8]} 3... cxd4 {[%clk 0:02:59.5]}
4. Qxd4 {[%clk 0:02:42.7]} 4... Nc6 {[%clk 0:02:59.9]} 5. Qd3 {[%clk 0:02:43.3]}
5... Nf6 {[%clk 0:02:55.4]} 6. Bf4 {[%clk 0:02:42.7]} 6... Bb4 {[%clk 0:02:48]}
7. O-O-O {[%clk 0:02:37.2]} 7... O-O {[%clk 0:02:37.7]} 8. f3 {[%clk 0:02:37.1]}
8... d5 {[%clk 0:02:36.8]} 9. exd5 {[%clk 0:02:34.4]} 9... exd5 {[%clk
0:02:33.2]} 10. Nge2 {[%clk 0:02:31.2]} 10... Be6 {[%clk 0:02:28.5]} 11. Nd4
{[%clk 0:02:17]} 11... Rc8 {[%clk 0:02:27.6]} 12. Nxc6 {[%clk 0:02:05.1]} 12...
bxc6 {[%clk 0:02:13]} 13. a3 {[%clk 0:02:02.2]} 13... Bd6 {[%clk 0:02:08.1]} 14.
Bxd6 {[%clk 0:01:56]} 14... Qxd6 {[%clk 0:02:09]} 15. g4 {[%clk 0:01:53.4]}
15... c5 {[%clk 0:02:05.6]} 16. g5 {[%clk 0:01:51]} 16... Qf4+ {[%clk
0:02:01.3]} 17. Qd2 {[%clk 0:01:49.5]} 17... Nh5 {[%clk 0:02:01.2]} 18. Ba6
{[%clk 0:01:37]} 18... Rcd8 {[%clk 0:01:58.4]} 19. Qxf4 {[%clk 0:01:33.7]} 19...
Nxf4 {[%clk 0:01:59.3]} 20. h4 {[%clk 0:01:33.3]} 20... d4 {[%clk 0:01:41.7]}
21. Ne4 {[%clk 0:01:32]} 21... Bd5 {[%clk 0:01:41.9]} 22. Rhf1 {[%clk
0:01:26.5]} 22... Bxe4 {[%clk 0:01:39.7]} 23. fxe4 {[%clk 0:01:26.8]} 23... Ng2
{[%clk 0:01:38.2]} 24. Rh1 {[%clk 0:01:21.9]} 24... Ne3 {[%clk 0:01:36.6]} 25.
Rd2 {[%clk 0:01:17.9]} 25... Rfe8 {[%clk 0:01:35.6]} 26. Bb7 {[%clk 0:01:18]}
26... Rb8 {[%clk 0:01:33.9]} 27. Bd5 {[%clk 0:01:17.1]} 27... Nxd5 {[%clk
0:01:32.9]} 28. exd5 {[%clk 0:01:18]} 28... Rbd8 {[%clk 0:01:32.2]} 29. c4
{[%clk 0:01:18.3]} 29... dxc3 {[%clk 0:01:26.5]} 30. bxc3 {[%clk 0:01:19.2]}
30... Re4 {[%clk 0:00:52.5]} 31. Rhd1 {[%clk 0:01:12.5]} 31... Rxh4 {[%clk
0:00:49.6]} 32. d6 {[%clk 0:01:12.6]} 32... f5 {[%clk 0:00:45.5]} 33. gxf6
{[%clk 0:01:06.1]} 33... gxf6 {[%clk 0:00:46.4]} 34. Re1 {[%clk 0:01:04.6]}
34... Kf8 {[%clk 0:00:38.2]} 35. Re6 {[%clk 0:00:56.2]} 35... Rf4 {[%clk
0:00:32.5]} 36. Rd5 {[%clk 0:00:51]} 36... Rd7 {[%clk 0:00:21.1]} 37. Rh5 {[%clk
0:00:36.6]} 37... Kf7 {[%clk 0:00:20.1]} 38. Re7+ {[%clk 0:00:37.1]} 38... Rxe7
{[%clk 0:00:20.2]} 39. Rxh7+ {[%clk 0:00:37.8]} 39... Ke6 {[%clk 0:00:14.6]} 40.
dxe7 {[%clk 0:00:35.2]} 40... Kd7 {[%clk 0:00:14.7]} 41. Kc2 {[%clk 0:00:36.1]}
41... Ke8 {[%clk 0:00:14]} 42. Kd3 {[%clk 0:00:34.9]} 42... Rf5 {[%clk
0:00:14.3]} 43. Kc4 {[%clk 0:00:34.5]} 43... Re5 {[%clk 0:00:14.7]} 44. Rh6
{[%clk 0:00:34.3]} 44... Rxe7 {[%clk 0:00:15.6]} 45. Rxf6 {[%clk 0:00:34.3]}
45... Re4+ {[%clk 0:00:15.6]} 46. Kxc5 {[%clk 0:00:34]} 46... Ra4 {[%clk
0:00:16.2]} 47. c4 {[%clk 0:00:33.2]} 47... Rxa3 {[%clk 0:00:16.6]} 48. Rh6
{[%clk 0:00:28.7]} 48... Rg3 {[%clk 0:00:14.2]} 49. Kc6 {[%clk 0:00:27.2]} 49...
Rg8 {[%clk 0:00:10.2]} 50. c5 {[%clk 0:00:27]} 50... Kd8 {[%clk 0:00:10.2]} 51.
Rh7 {[%clk 0:00:23.2]} 51... Rg6+ {[%clk 0:00:10]} 52. Kb7 {[%clk 0:00:23.5]}
52... Rg1 {[%clk 0:00:08.6]} 53. Rh8+ {[%clk 0:00:23.4]} 53... Ke7 {[%clk
0:00:08.3]} 54. c6 {[%clk 0:00:23.7]} 54... Rb1+ {[%clk 0:00:08.9]} 55. Kc7
{[%clk 0:00:23.5]} 55... a5 {[%clk 0:00:09.1]} 56. Rh4 {[%clk 0:00:22.6]} 56...
Rb4 {[%clk 0:00:08.1]} 57. Rh3 {[%clk 0:00:18.4]} 57... a4 {[%clk 0:00:08.3]}
58. Re3+ {[%clk 0:00:19]} 58... Kf7 {[%clk 0:00:07.6]} 59. Kd6 {[%clk
0:00:19.7]} 59... Rb3 {[%clk 0:00:06.6]} 60. Re2 {[%clk 0:00:19.3]} 60... a3
{[%clk 0:00:07]} 61. c7 {[%clk 0:00:19.8]} 61... Rd3+ {[%clk 0:00:06.7]} 62. Kc6
{[%clk 0:00:18.9]} 62... Rc3+ {[%clk 0:00:07]} 63. Kb6 {[%clk 0:00:19.4]} 63...
Rb3+ {[%clk 0:00:07.3]} 64. Ka7 {[%clk 0:00:19.7]} 64... Rc3 {[%clk 0:00:07.6]}
65. Kb7 {[%clk 0:00:19.8]} 65... Rb3+ {[%clk 0:00:08.2]} 66. Kc8 {[%clk
0:00:20.1]} 66... Rb2 {[%clk 0:00:08.2]} 67. Re1 {[%clk 0:00:17.7]} 67... a2
{[%clk 0:00:08.6]} 68. Kd8 {[%clk 0:00:17.3]} 68... Rd2+ {[%clk 0:00:07.7]} 69.
Kc8 {[%clk 0:00:17.3]} 69... Rb2 {[%clk 0:00:08.2]} 70. Kd7 {[%clk 0:00:16.9]}
70... Rd2+ {[%clk 0:00:06.5]} 71. Kc6 {[%clk 0:00:16.9]} 71... Rc2+ {[%clk
0:00:06.8]} 72. Kd6 {[%clk 0:00:17.4]} 72... Rd2+ {[%clk 0:00:06.6]} 73. Kc5
{[%clk 0:00:17.5]} 73... Rc2+ {[%clk 0:00:07.1]} 74. Kb6 {[%clk 0:00:17.2]}
74... Rb2+ {[%clk 0:00:07.3]} 75. Kc6 {[%clk 0:00:17.8]} 75... Rc2+ {[%clk
0:00:07.5]} 76. Kb7 {[%clk 0:00:18.5]} 76... Rb2+ {[%clk 0:00:08]} 77. Kc8
{[%clk 0:00:18.9]} 77... Rb1 {[%clk 0:00:07.9]} 78. Rxb1 {[%clk 0:00:07.1]}
78... axb1=Q {[%clk 0:00:08.8]} 79. Kd8 {[%clk 0:00:06.3]} 79... Qb6 {[%clk
0:00:08.6]} 80. Kd7 {[%clk 0:00:06.2]} 80... Qe6+ {[%clk 0:00:08.4]} 81. Kd8
{[%clk 0:00:06.8]} 81... Qd5+ {[%clk 0:00:05.4]} 82. Kc8 {[%clk 0:00:07.2]}
82... Ke6 {[%clk 0:00:04]} 83. Kb8 {[%clk 0:00:07.4]} 83... Qb5+ {[%clk
0:00:04.2]} 84. Ka8 {[%clk 0:00:07.2]} 84... Qa6+ {[%clk 0:00:04.3]} 85. Kb8
{[%clk 0:00:07.6]} 85... Qb6+ {[%clk 0:00:03.4]} 86. Ka8 {[%clk 0:00:08.5]}
86... Qxc7 {[%clk 0:00:01.8]} 1/2-1/2

[Event "Late-Titled-Tuesday-Blitz-February-13-2024"]
[Site "Chess.com"]
[Date "2024.02.13"]
[Round "3"]
[White "HaryKane"]
[Black "elchacal664"]
[Result "1-0"]
[WhiteElo "2599"]
[BlackElo "2410"]
[TimeControl "180+1"]
[EndTime "14:30:09 PST"]
[Termination "HaryKane won on time"]

1. d4 {[%clk 0:03:00.9]} 1... d5 {[%clk 0:02:59.3]} 2. e3 {[%clk 0:03:00.5]}
2... e6 {[%clk 0:02:59]} 3. f4 {[%clk 0:02:58.7]} 3... f5 {[%clk 0:02:59.1]} 4.
c4 {[%clk 0:02:57.5]} 4... c6 {[%clk 0:02:58.3]} 5. Nf3 {[%clk 0:02:58.1]} 5...
Nf6 {[%clk 0:02:57.9]} 6. Bd3 {[%clk 0:02:57.7]} 6... Bd6 {[%clk 0:02:55.8]} 7.
c5 {[%clk 0:02:55.7]} 7... Bc7 {[%clk 0:02:55]} 8. O-O {[%clk 0:02:56.3]} 8...
O-O {[%clk 0:02:55]} 9. Bd2 {[%clk 0:02:51.5]} 9... b6 {[%clk 0:02:52]} 10. b4
{[%clk 0:02:51.5]} 10... a5 {[%clk 0:02:51.4]} 11. cxb6 {[%clk 0:02:49.4]} 11...
Bxb6 {[%clk 0:02:50.7]} 12. bxa5 {[%clk 0:02:48.9]} 12... Bxa5 {[%clk
0:02:50.6]} 13. Bxa5 {[%clk 0:02:49.1]} 13... Rxa5 {[%clk 0:02:51.5]} 14. Nbd2
{[%clk 0:02:48.5]} 14... Ba6 {[%clk 0:02:48.3]} 15. Nb3 {[%clk 0:02:46.5]} 15...
Bxd3 {[%clk 0:02:42.7]} 16. Qxd3 {[%clk 0:02:46.2]} 16... Ra3 {[%clk 0:02:42.5]}
17. Rfc1 {[%clk 0:02:42]} 17... Ne4 {[%clk 0:02:41.2]} 18. Ne5 {[%clk
0:02:39.9]} 18... Qb6 {[%clk 0:02:21.7]} 19. Qc2 {[%clk 0:02:36.4]} 19... Rc8
{[%clk 0:02:09.3]} 20. Qb2 {[%clk 0:02:15.1]} 20... Qb4 {[%clk 0:02:00.9]} 21.
Rc2 {[%clk 0:02:06.4]} 21... Ra6 {[%clk 0:01:40.1]} 22. Nd3 {[%clk 0:01:59.6]}
22... Qe7 {[%clk 0:01:36.8]} 23. Nbc5 {[%clk 0:01:57.2]} 23... Ra7 {[%clk
0:01:29.5]} 24. Nxe4 {[%clk 0:01:50.2]} 24... fxe4 {[%clk 0:01:25.9]} 25. Ne5
{[%clk 0:01:43.9]} 25... Rac7 {[%clk 0:01:24.3]} 26. Rac1 {[%clk 0:01:38.6]}
26... h6 {[%clk 0:01:20.8]} 27. a4 {[%clk 0:01:35.8]} 27... Kh7 {[%clk
0:01:18.2]} 28. a5 {[%clk 0:01:32.4]} 28... Ra7 {[%clk 0:01:03.2]} 29. Qb6
{[%clk 0:01:16.3]} 29... Rb7 {[%clk 0:00:58.1]} 30. Qc5 {[%clk 0:01:14.8]} 30...
Qxc5 {[%clk 0:00:55.3]} 31. Rxc5 {[%clk 0:01:14.3]} 31... Ra7 {[%clk 0:00:55.7]}
32. g4 {[%clk 0:01:06]} 32... Rcc7 {[%clk 0:00:46.2]} 33. Rb1 {[%clk 0:01:00.2]}
33... Nd7 {[%clk 0:00:44]} 34. Nxd7 {[%clk 0:01:00.3]} 34... Rxd7 {[%clk
0:00:43.5]} 35. Rb6 {[%clk 0:00:59.3]} 35... Rdc7 {[%clk 0:00:34.9]} 36. a6
{[%clk 0:00:57.9]} 36... Kg8 {[%clk 0:00:32.7]} 37. Rcxc6 {[%clk 0:00:55.1]}
37... Rxc6 {[%clk 0:00:32.4]} 38. Rxc6 {[%clk 0:00:56]} 38... Kf7 {[%clk
0:00:32.5]} 39. Rb6 {[%clk 0:00:52.5]} 39... Ra8 {[%clk 0:00:26]} 40. Kf2 {[%clk
0:00:46.6]} 40... Rc8 {[%clk 0:00:21.7]} 41. a7 {[%clk 0:00:44.5]} 41... Rc2+
{[%clk 0:00:20.5]} 42. Ke1 {[%clk 0:00:44.1]} 42... Ra2 {[%clk 0:00:21.4]} 43.
Rb7+ {[%clk 0:00:43.8]} 43... Kf6 {[%clk 0:00:21.5]} 44. h4 {[%clk 0:00:41.2]}
44... g6 {[%clk 0:00:18.7]} 45. Kd1 {[%clk 0:00:37.8]} 45... h5 {[%clk
0:00:18.9]} 46. gxh5 {[%clk 0:00:33.6]} 46... gxh5 {[%clk 0:00:19.8]} 47. Kc1
{[%clk 0:00:33.9]} 47... Kf5 {[%clk 0:00:20]} 48. Kb1 {[%clk 0:00:34.1]} 48...
Ra6 {[%clk 0:00:18.1]} 49. Rg7 {[%clk 0:00:32]} 49... Kf6 {[%clk 0:00:15.9]} 50.
Rh7 {[%clk 0:00:31.7]} 50... Kg6 {[%clk 0:00:15.3]} 51. Rc7 {[%clk 0:00:25.6]}
51... Kf5 {[%clk 0:00:14.4]} 52. Kc2 {[%clk 0:00:20.7]} 52... Kg4 {[%clk
0:00:14.4]} 53. Kb3 {[%clk 0:00:21.1]} 53... Kxh4 {[%clk 0:00:13.2]} 54. Kb4
{[%clk 0:00:21.7]} 54... Kg3 {[%clk 0:00:12.6]} 55. Kb5 {[%clk 0:00:21.6]} 55...
Ra2 {[%clk 0:00:12.1]} 56. Kb6 {[%clk 0:00:20.9]} 56... h4 {[%clk 0:00:12.3]}
57. Re7 {[%clk 0:00:18.9]} 57... h3 {[%clk 0:00:11.9]} 58. Rxe6 {[%clk 0:00:19]}
58... Kf3 {[%clk 0:00:08.5]} 59. Rh6 {[%clk 0:00:19]} 59... Kxe3 {[%clk
0:00:08.8]} 60. f5 {[%clk 0:00:19.1]} 60... Kxd4 {[%clk 0:00:09.1]} 61. f6
{[%clk 0:00:19.4]} 61... Rb2+ {[%clk 0:00:06.5]} 62. Kc6 {[%clk 0:00:19.4]}
62... Rc2+ {[%clk 0:00:06.1]} 63. Kd6 {[%clk 0:00:19.4]} 63... Ra2 {[%clk
0:00:06.3]} 64. f7 {[%clk 0:00:14.1]} 64... Ra6+ {[%clk 0:00:06]} 65. Ke7 {[%clk
0:00:13.7]} 65... Rxh6 {[%clk 0:00:06.4]} 66. f8=Q {[%clk 0:00:13.8]} 66... Rh7+
{[%clk 0:00:06.6]} 67. Ke6 {[%clk 0:00:11.7]} 67... Rxa7 {[%clk 0:00:05.7]} 68.
Qf2+ {[%clk 0:00:11.5]} 68... e3 {[%clk 0:00:06]} 69. Qb2+ {[%clk 0:00:09.7]}
69... Ke4 {[%clk 0:00:05.3]} 70. Qc2+ {[%clk 0:00:09.7]} 70... Kf3 {[%clk
0:00:05.1]} 71. Qf5+ {[%clk 0:00:08]} 71... Ke2 {[%clk 0:00:05.1]} 72. Qg4+
{[%clk 0:00:08.2]} 72... Kf2 {[%clk 0:00:04.1]} 73. Qf4+ {[%clk 0:00:06.7]}
73... Ke2 {[%clk 0:00:04.4]} 74. Qh2+ {[%clk 0:00:06.3]} 74... Kd3 {[%clk
0:00:03.5]} 75. Qxh3 {[%clk 0:00:06.7]} 75... Ra6+ {[%clk 0:00:03.8]} 76. Kxd5
{[%clk 0:00:06.9]} 76... Ra5+ {[%clk 0:00:01.6]} 77. Kc6 {[%clk 0:00:06.9]}
77... Ra3 {[%clk 0:00:02.5]} 78. Qf5+ {[%clk 0:00:06.3]} 78... Kd2 {[%clk
0:00:02.9]} 79. Qf4 {[%clk 0:00:05]} 79... Rd3 {[%clk 0:00:03.8]} 80. Kc5 {[%clk
0:00:05.1]} 80... Kd1 {[%clk 0:00:03.4]} 81. Qe4 {[%clk 0:00:04.2]} 81... Kd2
{[%clk 0:00:03.3]} 82. Qb4+ {[%clk 0:00:03.2]} 82... Ke2 {[%clk 0:00:03]} 83.
Qg4+ {[%clk 0:00:03]} 83... Kd2 {[%clk 0:00:03.1]} 84. Qf4 {[%clk 0:00:03.6]}
84... Ke2 {[%clk 0:00:02.7]} 85. Kc4 {[%clk 0:00:03.9]} 85... Rd2 {[%clk
0:00:02.7]} 86. Qg4+ {[%clk 0:00:04.3]} 86... Ke1 {[%clk 0:00:02.5]} 87. Qg3+
{[%clk 0:00:04]} 87... Kd1 {[%clk 0:00:02.4]} 88. Qxe3 {[%clk 0:00:03.7]} 88...
Re2 {[%clk 0:00:02.1]} 89. Qf3 {[%clk 0:00:03.9]} 1-0